bitfinex/quotes_SOLUSD_20250415
["timestamp","ask_amount","ask_price","bid_price","bid_amount"]
[1744701026559,0.0001,131.66,131.65,44.35501878]
[1744701027559,0.0001,131.66,131.65,25.56320835]
[1744701030966,0.0001,131.66,131.63,83.0]
[1744701031261,0.0001,131.66,131.65,9.94180835]
[1744701033238,0.14216157,131.65,131.58,7.8307]
[1744701033445,9.94180835,131.63,131.58,19.20230835]
[1744701033639,9.94180835,131.64,131.59,9.94180835]
[1744701033838,9.94180835,131.63,131.58,11.60250835]
[1744701034045,9.94180835,131.63,131.58,19.20220835]
[1744701034766,0.14216157,131.65,131.58,19.20220835]
[1744701034767,7.5964,131.64,131.58,19.20220835]
[1744701034936,9.94180835,131.63,131.58,19.20220835]
[1744701035557,9.94180835,131.63,131.58,11.60250835]
[1744701036057,9.94180835,131.63,131.58,19.20240835]
[1744701036259,9.94180835,131.63,131.59,9.94180835]
[1744701036649,17.53900835,131.63,131.59,9.94180835]
[1744701037462,17.53770835,131.66,131.61,9.94180835]
[1744701037866,7.5959,131.66,131.61,9.94180835]
[1744701038041,0.0001,131.66,131.65,9.94180835]
[1744701038663,0.0001,131.66,131.65,17.53760835]
[1744701040369,0.0001,131.66,131.65,9.94180835]
[1744701040555,0.0001,131.66,131.64,35.94180835]
[1744701042267,0.0001,131.66,131.61,24.4254]
[1744701042565,0.0001,131.66,131.63,9.94180835]
[1744701043449,7.5954,131.66,131.62,9.94180835]
[1744701046365,0.0001,131.66,131.63,9.94180835]
[1744701048356,0.0001,131.66,131.63,17.53880835]
[1744701048554,0.0001,131.66,131.65,9.94180835]
[1744701049559,0.0001,131.66,131.63,7.5968]
[1744701049560,0.0001,131.66,131.63,9.94180835]
[1744701050064,0.0001,131.66,131.62,9.94180835]
[1744701050377,0.0001,131.66,131.61,18.038]
[1744701050577,0.0001,131.66,131.62,9.94180835]
[1744701051476,7.5954,131.66,131.62,9.94180835]
[1744701051679,7.5954,131.66,131.63,9.94180835]
[1744701051978,0.0001,131.66,131.63,9.94180835]
[1744701052354,0.0001,131.66,131.65,9.94180835]
[1744701052778,0.0001,131.66,131.64,9.94180835]
[1744701053869,0.0001,131.66,131.65,9.94180835]
[1744701056275,0.0001,131.66,131.65,17.53760835]
[1744701056478,0.0001,131.66,131.65,43.53760835]
[1744701057588,0.0001,131.66,131.65,35.94180835]
[1744701057756,0.0001,131.66,131.64,11.57340835]
[1744701057968,0.0001,131.66,131.64,9.94180835]
[1744701060458,0.0001,131.66,131.65,9.94180835]
[1744701060659,0.0001,131.66,131.64,9.94180835]
[1744701060863,0.0001,131.66,131.62,9.94180835]
[1744701061062,0.14216157,131.65,131.61,9.94180835]
[1744701061264,9.94190835,131.66,131.61,9.94180835]
[1744701061451,0.0001,131.66,131.62,9.94180835]
[1744701062065,7.5954,131.66,131.62,9.94180835]
[1744701062455,7.5954,131.66,131.61,7.5981]
[1744701062652,7.5954,131.66,131.59,7.5993]
[1744701062961,17.53720835,131.66,131.61,9.94180835]
[1744701063166,9.94180835,131.65,131.61,9.94180835]
[1744701063756,0.14216157,131.65,131.61,9.94180835]
[1744701064366,7.73836157,131.65,131.61,9.94180835]
[1744701065380,17.68016992,131.65,131.61,9.94180835]
[1744701068174,0.0001,131.66,131.63,9.94180835]
[1744701069078,9.94190835,131.66,131.62,26.0]
[1744701069669,9.94190835,131.66,131.6,9.94180835]
[1744701069670,9.94180835,131.65,131.6,9.94180835]
[1744701069981,9.94180835,131.61,131.56,0.063]
[1744701070163,9.94180835,131.62,131.57,9.94180835]
[1744701070363,0.14216157,131.62,131.58,9.94180835]
[1744701070785,17.68186992,131.62,131.58,9.94180835]
[1744701071677,0.0001,131.66,131.61,9.94180835]
[1744701071880,0.0001,131.66,131.63,9.94180835]
[1744701072083,7.5955,131.66,131.63,9.94180835]
[1744701073285,0.0001,131.66,131.63,9.94180835]
[1744701074191,0.0001,131.66,131.64,9.94180835]
[1744701074504,0.0001,131.66,131.65,9.94180835]
[1744701074875,0.0001,131.66,131.64,35.94180835]
[1744701075383,0.0001,131.66,131.65,17.53760835]
[1744701075882,0.0001,131.66,131.65,9.94180835]
[1744701078083,0.0001,131.66,131.63,9.94180835]
[1744701078499,0.0001,131.66,131.64,9.94180835]
[1744701079383,0.0001,131.66,131.65,9.94180835]
[1744701080781,0.0001,131.66,131.63,9.94180835]
[1744701081708,0.14226157,131.66,131.62,9.94180835]
[1744701082505,10.36839306,131.66,131.61,9.94180835]
[1744701083414,7.5958,131.65,131.61,9.94180835]
[1744701083726,7.73766157,131.66,131.62,9.94180835]
[1744701086007,0.0001,131.66,131.63,9.94180835]
[1744701086679,0.0001,131.66,131.64,9.94180835]
[1744701091449,0.0001,131.66,131.65,9.94180835]
[1744701093200,0.0001,131.66,131.65,17.53760835]
[1744701097210,0.0001,131.66,131.65,9.94180835]
[1744701098804,0.0001,131.66,131.64,7.5962]
[1744701098805,0.0001,131.66,131.64,9.94180835]
[1744701099334,9.94190835,131.66,131.62,9.94180835]
[1744701099909,0.14226157,131.66,131.62,9.94180835]
[1744701101418,17.53760835,131.65,131.6,9.94180835]
[1744701101624,17.53760835,131.65,131.61,9.94180835]
[1744701101822,7.73776157,131.66,131.62,9.94180835]
[1744701102023,0.0001,131.66,131.63,9.94180835]
[1744701103237,0.0001,131.66,131.64,9.94180835]
[1744701103610,0.0001,131.66,131.62,9.94180835]
[1744701106271,0.0001,131.66,131.63,9.94180835]
[1744701106447,0.0001,131.66,131.64,9.94180835]
[1744701106618,0.0001,131.66,131.63,9.94180835]
[1744701107614,0.0001,131.66,131.64,9.94180835]
[1744701108540,0.0001,131.66,131.65,9.94180835]
[1744701109449,0.0001,131.66,131.65,28.73361878]
[1744701109653,0.0001,131.66,131.65,119.32941878]
[1744701112651,0.0001,131.66,131.65,83.0]
[1744701113029,0.0001,131.66,131.65,92.94180835]
[1744701113227,0.0001,131.66,131.62,9.94180835]
[1744701113564,0.0001,131.66,131.6,94.46980835]
[1744701113565,9.94180835,131.65,131.6,94.46980835]
[1744701113850,9.94190835,131.66,131.61,9.94180835]
[1744701114650,7.5958,131.65,131.61,9.94180835]
[1744701115544,17.53760835,131.65,131.6,9.94180835]
[1744701116929,17.53760835,131.65,131.59,10.32]
[1744701116930,9.94180835,131.64,131.59,9.94180835]
[1744701117260,9.94180835,131.63,131.58,93.00480835]
[1744701117553,9.94180835,131.64,131.59,9.94180835]
[1744701118657,7.597,131.63,131.59,9.94180835]
[1744701119941,7.597,131.63,131.58,10.00480835]
[1744701119942,17.53880835,131.63,131.58,10.00480835]
[1744701120330,17.53880835,131.63,131.58,17.60470835]
[1744701120939,17.53880835,131.63,131.59,9.94180835]
[1744701121528,7.597,131.63,131.59,9.94180835]
[1744701122358,10.3,131.65,131.61,9.94180835]
[1744701122729,10.3,131.65,131.62,9.94180835]
[1744701123455,17.896,131.65,131.62,9.94180835]
[1744701123661,7.596,131.65,131.61,9.94180835]
[1744701124036,7.5956,131.66,131.62,9.94180835]
[1744701124255,0.0001,131.66,131.64,9.94180835]
[1744701124641,0.0001,131.66,131.65,9.94180835]
[1744701127859,0.0001,131.66,131.63,9.94180835]
[1744701128046,9.94180835,131.65,131.61,9.94180835]
[1744701128761,9.94180835,131.65,131.58,25.2168]
[1744701128762,9.94180835,131.62,131.58,0.063]
[1744701129059,9.94180835,131.63,131.59,9.94180835]
[1744701129449,0.14216157,131.63,131.59,9.94180835]
[1744701129852,7.73946157,131.63,131.59,9.94180835]
[1744701130055,17.53850835,131.64,131.59,17.54110835]
[1744701130238,17.53850835,131.64,131.6,9.94180835]
[1744701131843,17.53850835,131.64,131.59,9.94180835]
[1744701132056,9.94180835,131.63,131.58,10.00480835]
[1744701132667,9.94180835,131.62,131.58,0.063]
[1744701133483,10.08396992,131.63,131.58,17.60460835]
[1744701133850,17.53940835,131.62,131.58,10.00480835]
[1744701134777,7.5976,131.62,131.58,10.00480835]
[1744701134959,17.68116992,131.63,131.59,9.94180835]
[1744701136290,17.68116992,131.63,131.58,10.00480835]
[1744701140576,17.68116992,131.63,131.58,17.60460835]
[1744701140879,7.73936157,131.63,131.59,9.94180835]
[1744701142877,17.53850835,131.64,131.59,17.54090835]
[1744701143878,0.0001,131.66,131.61,9.94180835]
[1744701144077,0.0001,131.66,131.65,9.94180835]
[1744701144400,0.0001,131.66,131.64,9.94180835]
[1744701146187,0.0001,131.66,131.61,18.9949]
[1744701146188,0.0001,131.66,131.65,9.94180835]
[1744701147979,0.0001,131.66,131.64,9.94180835]
[1744701148180,0.0001,131.66,131.63,9.94180835]
[1744701148480,0.0001,131.66,131.64,9.94180835]
[1744701149696,0.0001,131.66,131.65,9.94180835]
[1744701150073,0.0001,131.66,131.64,9.94180835]
[1744701150271,0.0001,131.66,131.63,9.94180835]
[1744701153192,17.53720835,131.66,131.61,9.94180835]
[1744701153370,9.94180835,131.64,131.59,9.94180835]
[1744701154385,17.53870835,131.64,131.59,17.54070835]
[1744701155388,17.53870835,131.64,131.6,9.94180835]
[1744701155582,9.94180835,131.64,131.6,17.54040835]
[1744701155967,9.94180835,131.65,131.6,17.54040835]
[1744701156281,9.94190835,131.66,131.61,9.94180835]
[1744701156664,17.53730835,131.66,131.61,9.94180835]
[1744701157084,9.94180835,131.65,131.6,17.54040835]
[1744701158491,9.94180835,131.65,131.58,83.063]
[1744701158805,9.94180835,131.6,131.58,0.063]
[1744701161285,17.54090835,131.6,131.58,0.063]
[1744701161477,9.94180835,131.59,131.58,0.063]
[1744701161894,17.54090835,131.6,131.58,0.063]
[1744701163993,10.08396992,131.62,131.58,0.063]
[1744701164294,7.73776157,131.66,131.61,9.94180835]
[1744701164481,7.73756157,131.66,131.62,9.94180835]
[1744701164670,9.94180835,131.65,131.6,9.94180835]
[1744701164875,9.94180835,131.64,131.6,9.94180835]
[1744701165298,9.94180835,131.65,131.6,9.94180835]
[1744701166102,7.5964,131.64,131.6,9.94180835]
[1744701168092,17.53820835,131.64,131.6,9.94180835]
[1744701168594,9.94180835,131.64,131.6,17.54050835]
[1744701168781,17.53780835,131.65,131.6,17.54050835]
[1744701169801,9.94180835,131.65,131.6,17.54050835]
[1744701170096,17.67956992,131.66,131.61,9.94180835]
[1744701170306,9.94180835,131.65,131.6,17.54050835]
[1744701170693,17.53800835,131.65,131.6,17.54050835]
[1744701173103,9.94180835,131.64,131.59,17.54090835]
[1744701173487,9.94180835,131.63,131.58,118.69500835]
[1744701174507,9.94180835,131.64,131.59,9.94180835]
[1744701175607,17.53850835,131.64,131.59,17.54090835]
[1744701178804,9.94180835,131.63,131.58,118.69510835]
[1744701178983,9.94180835,131.61,131.58,7.8736]
[1744701179186,6.37384195,131.61,131.58,1.6125]
[1744701179386,6.37384195,131.6,131.58,0.063]
[1744701181208,9.96096415,131.6,131.58,0.063]
[1744701181918,17.70112572,131.62,131.58,0.063]
[1744701182208,9.96096415,131.65,131.61,9.96096415]
[1744701183610,9.96096415,131.64,131.6,9.96096415]
[1744701183811,9.96096415,131.64,131.59,36.35187458]
[1744701184616,9.96096415,131.63,131.58,110.86366415]
[1744701184799,9.96096415,131.63,131.58,27.86366415]
[1744701185611,17.55816415,131.63,131.58,27.86366415]
[1744701185796,9.96096415,131.62,131.58,10.303]
[1744701187611,17.55886415,131.62,131.58,10.303]
[1744701187918,17.55886415,131.62,131.58,0.063]
[1744701188618,9.96096415,131.61,131.58,0.063]
[1744701188835,9.96096415,131.6,131.58,0.063]
[1744701189320,10.10312572,131.61,131.58,0.063]
[1744701190122,7.5987,131.6,131.58,0.063]
[1744701190493,17.55936415,131.61,131.58,0.063]
[1744701192423,9.96096415,131.6,131.58,0.063]
[1744701192598,9.96096415,131.59,131.58,0.063]
[1744701193419,7.5984,131.61,131.58,0.063]
[1744701193420,9.96096415,131.6,131.58,0.063]
[1744701194801,17.55966415,131.6,131.58,0.063]
[1744701195319,9.96096415,131.6,131.58,0.063]
[1744701195796,17.55936415,131.61,131.58,0.063]
[1744701196408,9.96096415,131.59,131.58,0.063]
[1744701196708,10.10312572,131.59,131.58,0.063]
[1744701196924,17.70242572,131.59,131.58,0.063]
[1744701198432,17.98674886,131.59,131.58,0.063]
[1744701199100,36.77855929,131.59,131.58,0.0001]
[1744701199303,36.63639772,131.59,131.58,0.0001]
[1744701199919,40.58090011,131.59,131.58,0.0001]
[1744701201128,18.79181043,131.58,131.57,0.0001]
[1744701201322,39.27709772,131.58,131.52,0.063]
[1744701201635,40.41789772,131.58,131.52,0.063]
[1744701201830,0.28432314,131.56,131.52,0.063]
[1744701202424,9.96096415,131.53,131.52,0.063]
[1744701203310,17.70592572,131.53,131.52,0.063]
[1744701208337,17.56376415,131.53,131.52,0.063]
[1744701209132,13.98506886,131.53,131.52,0.063]
[1744701212437,14.41155357,131.53,131.52,0.063]
[1744701212742,39.94062901,131.53,131.52,0.063]
[1744701213119,58.59027787,131.53,131.52,0.063]
[1744701214727,33.06120243,131.53,131.52,0.063]
[1744701214927,58.59027787,131.53,131.52,0.063]
[1744701215129,18.00538655,131.53,131.52,0.063]
[1744701216036,46.63113725,131.53,131.52,0.063]
[1744701216847,18.00538655,131.53,131.52,0.063]
[1744701217645,9.97610184,131.53,131.52,0.063]
[1744701217834,17.57890184,131.53,131.52,0.063]
[1744701218037,17.72106341,131.53,131.52,0.063]
[1744701218651,18.00538655,131.53,131.52,0.063]
[1744701220957,27.98148839,131.53,131.52,0.063]
[1744701221122,46.63113725,131.53,131.52,0.063]
[1744701221331,18.79181043,131.52,131.51,0.063]
[1744701221528,28.76791227,131.52,131.51,0.063]
[1744701222252,36.37131227,131.52,131.51,0.063]
[1744701225154,46.61131227,131.52,131.51,0.063]
[1744701228660,28.24598655,131.52,131.51,0.063]
[1744701228848,27.96166341,131.52,131.51,0.063]
[1744701229368,20.21610184,131.52,131.51,0.063]
[1744701229577,80.8,131.57,131.51,17.98500184]
[1744701229578,7.601,131.56,131.51,17.98500184]
[1744701229766,17.57710184,131.56,131.52,9.97610184]
[1744701230277,9.97610184,131.55,131.51,8.0089]
[1744701230773,9.97610184,131.54,131.51,8.0089]
[1744701231148,9.97610184,131.53,131.51,8.0089]
[1744701232863,17.57900184,131.53,131.51,8.0089]
[1744701234265,9.97610184,131.53,131.51,8.0089]
[1744701234576,9.97610184,131.54,131.51,8.0089]
[1744701234756,9.97610184,131.55,131.51,15.6127]
[1744701235139,17.57740184,131.56,131.51,25.58880184]
[1744701236476,9.97610184,131.55,131.51,15.6127]
[1744701236775,17.57780184,131.55,131.51,15.6127]
[1744701238869,9.97610184,131.54,131.51,8.0089]
[1744701241273,6.38070905,131.54,131.51,8.0089]
[1744701242577,7.6028,131.53,131.51,8.0089]
[1744701242969,6.38070905,131.52,131.51,8.0089]
[1744701243267,6.38070905,131.52,131.51,0.063]
[1744701245275,9.97384059,131.52,131.51,0.063]
[1744701246883,9.97384059,131.53,131.51,0.063]
[1744701247581,9.97384059,131.52,131.51,0.063]
[1744701249479,17.57724059,131.52,131.51,0.063]
[1744701250180,18.0037253,131.52,131.51,0.063]
[1744701250385,36.65337416,131.52,131.51,0.063]
[1744701250698,18.0037253,131.52,131.51,0.063]
[1744701252793,9.97384059,131.52,131.51,0.063]
[1744701252988,9.97384059,131.53,131.51,0.063]
[1744701254793,17.57674059,131.53,131.51,0.063]
[1744701254972,9.97384059,131.52,131.51,0.063]
[1744701256421,17.57674059,131.53,131.51,0.063]
[1744701257410,9.97384059,131.52,131.51,0.063]
[1744701257881,17.57674059,131.53,131.51,0.063]
[1744701258081,9.97384059,131.52,131.51,0.063]
[1744701258283,17.57724059,131.52,131.51,0.063]
[1744701258484,9.97384059,131.52,131.51,0.063]
[1744701258792,17.57724059,131.52,131.51,0.063]
[1744701259292,9.97384059,131.52,131.51,0.063]
[1744701260915,0.14216157,131.56,131.51,0.063]
[1744701260916,7.6024,131.54,131.51,0.063]
[1744701261100,9.97384059,131.53,131.51,0.063]
[1744701261925,17.57684059,131.53,131.51,0.063]
[1744701263294,9.97384059,131.52,131.51,0.063]
[1744701264810,17.57724059,131.52,131.51,0.063]
[1744701265315,6.38342513,131.52,131.51,0.063]
[1744701265518,13.98642513,131.53,131.51,0.063]
[1744701265814,6.38342513,131.52,131.51,0.063]
[1744701266516,13.98682513,131.52,131.51,0.063]
[1744701270301,43.01863556,131.52,131.51,0.063]
[1744701275426,0.28432314,131.51,131.5,0.063]
[1744701275722,6.66774827,131.51,131.5,0.063]
[1744701278026,14.27164827,131.51,131.5,0.063]
[1744701278526,14.1294867,131.51,131.5,0.063]
[1744701284432,14.41380984,131.51,131.5,0.063]
[1744701286650,7.6039,131.51,131.5,1.6353]
[1744701286833,24.22702513,131.52,131.5,1.6353]
[1744701287139,17.8436,131.52,131.5,1.6353]
[1744701287631,10.24,131.52,131.5,1.6353]
[1744701287833,13.98662513,131.53,131.5,1.6353]
[1744701289042,7.6032,131.53,131.5,1.6353]
[1744701289218,13.98662513,131.53,131.5,1.6353]
[1744701301854,6.38342513,131.51,131.5,1.6353]
[1744701303328,13.98722513,131.52,131.5,1.6353]
[1744701303626,37.79711043,131.55,131.5,1.6353]
[1744701303627,6.38342513,131.53,131.5,1.6353]
[1744701303844,13.98602513,131.54,131.5,1.6353]
[1744701304249,6.38342513,131.53,131.5,1.6353]
[1744701306356,6.38342513,131.54,131.5,9.2397]
[1744701306653,6.38342513,131.55,131.5,15.62312513]
[1744701307235,0.03,131.58,131.54,6.38342513]
[1744701307442,0.03,131.58,131.55,6.38342513]
[1744701307644,0.03,131.58,131.53,1.5716]
[1744701307645,6.38342513,131.57,131.53,1.5716]
[1744701307844,6.38342513,131.54,131.52,6.6461]
[1744701308153,6.38342513,131.53,131.5,1.706]
[1744701308355,6.38342513,131.52,131.5,1.706]
[1744701308555,6.38342513,131.53,131.5,1.706]
[1744701309057,13.98652513,131.53,131.5,1.706]
[1744701310936,7.6024,131.54,131.5,8.08942513]
[1744701311256,13.98582513,131.54,131.5,8.08942513]
[1744701313157,13.98582513,131.54,131.5,1.706]
[1744701313359,6.38342513,131.53,131.5,1.706]
[1744701313858,13.98582513,131.54,131.5,1.706]
[1744701316658,13.98582513,131.54,131.5,8.08942513]
[1744701317761,7.6024,131.54,131.5,8.08942513]
[1744701318057,24.22412513,131.57,131.52,6.38342513]
[1744701318255,0.03,131.58,131.54,12.68062513]
[1744701318459,0.03,131.58,131.55,7.97172513]
[1744701318664,0.03,131.58,131.57,13.98392513]
[1744701319560,0.03,131.58,131.57,32.77573556]
[1744701319749,0.03,131.59,131.57,32.77573556]
[1744701320065,0.03,131.59,131.58,6.38342513]
[1744701321056,0.03,131.59,131.58,13.98332513]
[1744701321264,0.03,131.6,131.58,21.68082513]
[1744701321443,0.03,131.6,131.59,6.38342513]
[1744701323458,0.03,131.6,131.58,15.2974]
[1744701323758,0.03,131.6,131.58,7.6975]
[1744701324343,0.03,131.6,131.58,14.08092513]
[1744701325868,0.03,131.6,131.58,7.6975]
[1744701326246,0.03,131.6,131.58,21.68062513]
[1744701326446,0.03,131.6,131.59,6.38342513]
[1744701327246,0.03,131.6,131.58,7.6975]
[1744701327448,14.01212513,131.6,131.58,7.6975]
[1744701327743,0.03,131.6,131.58,7.6975]
[1744701329170,6.41342513,131.6,131.58,1.5872]
[1744701330458,0.03,131.6,131.58,1.5872]
[1744701330766,0.03,131.6,131.59,6.38342513]
[1744701331550,0.03,131.6,131.58,7.97062513]
[1744701331754,0.03,131.6,131.59,6.38342513]
[1744701332359,0.03,131.6,131.59,13.98272513]
[1744701333675,0.03,131.6,131.59,32.77453556]
[1744701333977,0.03,131.62,131.61,51.17523556]
[1744701334480,0.03,131.62,131.61,58.77343556]
[1744701336161,0.03,131.62,131.61,141.77343556]
[1744701337673,0.0001,131.66,131.61,162.33503556]
[1744701337980,0.0001,131.66,131.64,6.38342513]
[1744701339178,0.0001,131.66,131.63,6.38342513]
[1744701339764,0.0001,131.66,131.63,13.98032513]
[1744701339965,0.0001,131.66,131.63,6.38342513]
[1744701340181,0.0001,131.66,131.63,13.98042513]
[1744701340364,0.0001,131.66,131.64,6.38342513]
[1744701340762,0.0001,131.66,131.65,31.81453556]
[1744701340967,0.0001,131.66,131.65,13.02272513]
[1744701341777,0.0001,131.66,131.65,20.61852513]
[1744701342586,0.0001,131.66,131.65,39.41033556]
[1744701342774,0.0001,131.66,131.65,22.2996867]
[1744701345392,0.0001,131.66,131.65,14.56172513]
[1744701345696,0.0001,131.66,131.65,22.15752513]
[1744701346959,0.0001,131.66,131.65,123.94933556]
[1744701347157,0.03,131.67,131.66,0.42648471]
[1744701347388,0.03,131.67,131.66,6.80990984]
[1744701347694,0.03,131.67,131.65,22.15752513]
[1744701347859,0.03,131.67,131.65,8.1783]
[1744701348381,0.03,131.67,131.65,22.15742513]
[1744701348562,0.03,131.67,131.65,14.56172513]
[1744701349164,0.03,131.67,131.65,18.12462562]
[1744701350191,0.03,131.67,131.64,17.95836157]
[1744701350192,0.03,131.67,131.64,20.16632562]
[1744701350401,9.97632562,131.67,131.64,10.22]
[1744701350712,0.03,131.67,131.64,27.76262562]
[1744701351084,0.03,131.67,131.64,10.22]
[1744701351387,9.94632562,131.65,131.61,15.7888]
[1744701351588,9.94632562,131.65,131.61,25.73512562]
[1744701351806,9.94632562,131.66,131.61,25.73512562]
[1744701352006,9.97632562,131.67,131.62,9.94632562]
[1744701352809,9.94632562,131.66,131.62,9.94632562]
[1744701352983,9.94632562,131.65,131.61,25.73512562]
[1744701353514,9.94632562,131.66,131.61,25.73512562]
[1744701354024,0.03,131.67,131.62,28.73813605]
[1744701354184,9.94632562,131.66,131.62,9.94632562]
[1744701354510,9.94632562,131.65,131.61,25.73512562]
[1744701355278,9.94632562,131.65,131.61,8.1908]
[1744701355488,9.94632562,131.65,131.61,15.789]
[1744701355789,9.94632562,131.64,131.61,8.1908]
[1744701356499,9.94632562,131.63,131.61,1.6535]
[1744701356683,9.94632562,131.62,131.59,10.22]
[1744701356891,9.94632562,131.62,131.59,17.8193]
[1744701357404,9.94632562,131.63,131.59,17.8193]
[1744701358317,9.94632562,131.63,131.59,27.76562562]
[1744701358817,9.94632562,131.65,131.6,10.08848719]
[1744701359402,9.94632562,131.64,131.6,10.08848719]
[1744701359621,9.94632562,131.65,131.61,9.94632562]
[1744701359796,9.94632562,131.66,131.61,9.94632562]
[1744701360193,9.94632562,131.66,131.62,1.5245]
[1744701360706,9.97632562,131.67,131.63,10.08848719]
[1744701360925,0.03,131.67,131.64,9.94632562]
[1744701361217,0.03,131.67,131.66,10.08848719]
[1744701362719,0.03,131.67,131.66,36.33343605]
[1744701363030,0.03,131.67,131.66,121.22225919]
[1744701363522,0.03,131.68,131.67,0.28432314]
[1744701363725,0.03,131.68,131.67,10.37281033]
[1744701364698,0.03,131.68,131.67,17.96751033]
[1744701366497,0.03,131.68,131.67,100.96751033]
[1744701372617,0.03,131.68,131.67,100.68318719]
[1744701373213,0.03,131.68,131.67,83.0]
[1744701373618,0.03,131.68,131.67,90.5947]
[1744701373927,0.03,131.68,131.67,100.68318719]
[1744701374430,0.03,131.68,131.67,119.61715919]
[1744701374722,0.03,131.7,131.69,18.64964886]
[1744701374928,0.03,131.7,131.69,121.81597448]
[1744701375630,0.03,131.7,131.69,128.57191974]
[1744701376309,0.03,131.7,131.69,122.38462076]
[1744701376625,0.03,131.7,131.69,129.97812076]
[1744701378525,0.0001,131.72,131.71,52.81069514]
[1744701378731,0.0001,131.72,131.71,36.75702076]
[1744701381819,0.03,131.74,131.73,25.61729514]
[1744701382007,0.03,131.74,131.73,118.56352076]
[1744701383331,0.03,131.74,131.73,126.15472076]
[1744701384722,0.03,131.74,131.73,125.87039762]
[1744701384922,0.03,131.74,131.73,126.01255919]
[1744701385233,0.03,131.74,131.73,126.15472076]
[1744701389939,0.03,131.74,131.73,119.61355919]
[1744701390120,0.03,131.74,131.73,90.73326157]
[1744701390533,0.03,131.74,131.73,119.32923605]
[1744701391622,0.03,131.74,131.73,119.75572076]
[1744701392836,0.03,131.74,131.73,119.32923605]
[1744701393040,0.03,131.74,131.73,100.67958719]
[1744701393341,0.03,131.74,131.73,93.08838719]
[1744701393536,0.03,131.74,131.73,100.67958719]
[1744701394046,0.03,131.74,131.73,83.14206157]
[1744701394439,0.03,131.74,131.73,90.73326157]
[1744701394635,0.03,131.74,131.73,100.67958719]
[1744701396745,0.03,131.74,131.73,82.9999]
[1744701397049,9.97632562,131.74,131.69,93.2199]
[1744701397239,9.94632562,131.73,131.69,103.16622562]
[1744701397543,9.97632562,131.74,131.69,103.16622562]
[1744701398043,17.56722562,131.74,131.69,110.75952562]
[1744701398239,0.03,131.74,131.71,9.94632562]
[1744701398737,0.03,131.74,131.7,18.79181043]
[1744701398738,0.03,131.74,131.72,10.08848719]
[1744701398940,0.03,131.74,131.7,101.79171043]
[1744701399155,0.03,131.74,131.72,9.94632562]
[1744701400440,0.03,131.74,131.72,17.53812562]
[1744701401251,0.03,131.74,131.7,101.79171043]
[1744701401429,0.03,131.74,131.7,111.73803605]
[1744701402436,0.03,131.74,131.7,119.33073605]
[1744701403256,0.03,131.74,131.71,9.94632562]
[1744701403927,0.03,131.74,131.72,9.94632562]
[1744701404130,0.03,131.74,131.71,9.94632562]
[1744701404542,0.03,131.74,131.7,90.73476157]
[1744701404744,0.03,131.74,131.7,100.53892562]
[1744701406574,0.03,131.74,131.71,17.53872562]
[1744701406760,0.03,131.74,131.71,9.94632562]
[1744701407751,0.03,131.74,131.71,17.53852562]
[1744701408256,0.03,131.74,131.72,9.94632562]
[1744701408561,0.03,131.74,131.73,9.94632562]
[1744701408744,0.03,131.74,131.73,26.0]
[1744701409053,0.03,131.74,131.71,9.94632562]
[1744701409257,0.03,131.74,131.7,100.53892562]
[1744701409431,0.03,131.74,131.71,9.94632562]
[1744701410251,9.97632562,131.74,131.7,82.9999]
[1744701410456,9.97632562,131.74,131.69,27.75972562]
[1744701410836,9.97632562,131.74,131.69,17.8134]
[1744701411037,9.97632562,131.74,131.69,27.75972562]
[1744701411239,9.94632562,131.73,131.69,10.22]
[1744701411647,9.94632562,131.72,131.69,10.22]
[1744701411942,9.94632562,131.72,131.67,0.063]
[1744701412250,9.94632562,131.68,131.67,0.063]
[1744701412447,9.94632562,131.7,131.67,0.063]
[1744701412847,17.54042562,131.68,131.67,0.063]
[1744701413051,7.5941,131.68,131.67,0.063]
[1744701413242,17.53992562,131.69,131.67,0.063]
[1744701413645,9.94632562,131.68,131.67,0.063]
[1744701414356,10.08848719,131.68,131.67,0.063]
[1744701414558,11.20722562,131.68,131.67,0.063]